bitfinex/quotes_SOLUSD_20250415
["timestamp","ask_amount","ask_price","bid_price","bid_amount"]
[1744739044804,2.86406759,129.05,129.04,0.063]
[1744739045106,27.19458672,129.06,129.04,0.063]
[1744739048414,19.44628672,129.05,129.04,0.063]
[1744739049302,27.19518672,129.05,129.04,0.063]
[1744739049905,30.05406449,129.05,129.04,0.063]
[1744739050311,22.30516449,129.05,129.04,0.063]
[1744739050502,27.19518672,129.05,129.04,0.063]
[1744739051908,30.0563498,129.05,129.04,0.063]
[1744739052902,10.61006308,129.05,129.04,0.063]
[1744739053083,30.0563498,129.05,129.04,0.063]
[1744739053999,27.19518672,129.05,129.04,0.063]
[1744739057020,27.19468672,129.06,129.04,0.063]
[1744739057323,7.7484,129.06,129.04,0.063]
[1744739057506,20.20021099,129.06,129.04,0.063]
[1744739059425,7.748,129.07,129.04,0.063]
[1744739059629,12.45181099,129.1,129.05,12.45181099]
[1744739059800,2.86431944,129.09,129.05,12.45181099]
[1744739060509,20.19831099,129.1,129.05,12.45181099]
[1744739061130,27.1906941,129.1,129.05,19.4441941]
[1744739061427,27.1906941,129.1,129.05,27.1929941]
[1744739062906,27.1906941,129.1,129.06,19.4441941]
[1744739063107,27.1906941,129.1,129.07,10.86]
[1744739064227,45.4441941,129.12,129.07,31.9645941]
[1744739064427,2.86632298,129.11,129.07,31.9645941]
[1744739065330,2.86632298,129.1,129.07,12.5204]
[1744739065633,2.86632298,129.1,129.07,39.7122941]
[1744739065817,2.86632298,129.11,129.07,39.7122941]
[1744739066018,22.31051708,129.11,129.07,12.5204]
[1744739066232,30.05621708,129.11,129.07,12.5204]
[1744739066735,27.1898941,129.11,129.07,12.5204]
[1744739066935,19.4441941,129.09,129.07,10.86]
[1744739068230,27.1906941,129.09,129.07,10.86]
[1744739069934,19.4441941,129.08,129.07,10.86]
[1744739070127,27.1906941,129.09,129.07,10.86]
[1744739072019,19.4441941,129.08,129.07,10.86]
[1744739072418,22.30546961,129.08,129.07,10.86]
[1744739073847,2.86127551,129.08,129.07,10.86]
[1744739074440,27.1907941,129.09,129.07,10.86]
[1744739076039,19.4441941,129.08,129.07,10.86]
[1744739077944,27.1912941,129.08,129.07,10.86]
[1744739078525,27.1912941,129.08,129.04,0.063]
[1744739078840,19.4441941,129.05,129.04,0.063]
[1744739079952,30.05460058,129.05,129.04,0.063]
[1744739081841,48.70424944,129.05,129.04,0.063]
[1744739082943,48.70424944,129.05,129.04,0.0001]
[1744739085149,41.72149123,129.05,129.04,0.0001]
[1744739089248,51.17995813,129.05,129.04,0.0001]
[1744739090146,18.64964886,129.04,129.03,0.063]
[1744739090346,31.11108475,129.04,129.03,0.063]
[1744739090546,33.97259123,129.04,129.03,0.063]
[1744739091751,41.72209123,129.04,129.03,0.063]
[1744739092051,67.72209123,129.04,129.03,0.063]
[1744739092230,31.11108475,129.02,129.01,0.063]
[1744739092656,18.64964886,129.01,128.99,0.063]
[1744739092837,62.30717945,129.0,128.99,0.063]
[1744739093031,12.46143589,129.0,128.99,0.063]
[1744739093437,15.32294237,129.0,128.99,0.063]
[1744739094353,23.07484237,129.0,128.99,0.063]
[1744739094834,35.53627826,129.0,128.99,0.063]
[1744739095251,72.92058593,129.0,128.99,0.063]
[1744739097853,38.64964886,128.99,128.97,0.063]
[1744739098041,18.64964886,128.97,128.94,0.063]
[1744739098357,12.46143589,128.95,128.94,0.063]
[1744739099358,20.21633589,128.95,128.94,0.063]
[1744739100358,20.21593589,128.96,128.94,0.063]
[1744739100857,12.46143589,128.95,128.94,0.063]
[1744739101965,20.21523589,128.97,128.94,0.063]
[1744739102135,12.46143589,128.97,128.94,0.063]
[1744739102859,7.7525,128.99,128.95,23.32143589]
[1744739103037,12.46143589,129.01,128.96,12.46143589]
[1744739103243,7.7507,129.02,128.96,12.46143589]
[1744739103443,7.7507,129.02,128.96,20.21563589]
[1744739103444,7.7519,129.0,128.96,20.21563589]
[1744739103638,12.46143589,129.01,128.96,20.21563589]
[1744739103846,20.21263589,129.02,128.97,12.46143589]
[1744739104161,46.21263589,129.02,128.97,12.46143589]
[1744739104662,20.21263589,129.02,128.97,12.46143589]
[1744739104858,12.46143589,129.01,128.96,12.46143589]
[1744739105048,12.46143589,129.0,128.95,31.07583589]
[1744739106563,20.21353589,129.0,128.95,31.07583589]
[1744739108373,12.46143589,129.0,128.95,31.07583589]
[1744739108554,12.46143589,129.0,128.96,12.46143589]
[1744739110050,20.21333589,129.0,128.95,31.07583589]
[1744739110254,12.46143589,128.97,128.95,10.86]
[1744739110451,20.21523589,128.97,128.95,10.86]
[1744739112768,12.46143589,128.96,128.95,10.86]
[1744739113770,12.46143589,128.96,128.94,0.063]
[1744739114062,20.21633589,128.95,128.94,0.063]
[1744739114958,38.86598475,128.95,128.94,0.063]
[1744739115144,38.86598475,128.95,128.93,0.063]
[1744739115145,144.17019521,128.95,128.93,0.063]
[1744739115346,65.15072498,128.94,128.93,0.063]
[1744739115950,72.90622498,128.94,128.93,0.063]
[1744739116276,23.06048142,128.94,128.93,0.063]
[1744739116975,91.55587384,128.94,128.93,0.063]
[1744739117373,23.06048142,128.94,128.93,0.063]
[1744739117577,12.46143589,128.94,128.93,0.063]
[1744739118148,12.46143589,128.95,128.93,0.063]
[1744739119648,12.46143589,128.96,128.93,0.063]
[1744739120254,12.46143589,128.96,128.93,7.8191]
[1744739120449,7.7532,128.98,128.93,7.8191]
[1744739120653,12.46143589,128.95,128.93,0.063]
[1744739120880,12.46143589,128.94,128.93,0.063]
[1744739121460,12.46143589,128.95,128.93,0.063]
[1744739122058,12.46143589,128.96,128.93,0.063]
[1744739122577,26.0,128.97,128.93,12.52443589]
[1744739123081,33.7538,128.97,128.93,0.063]
[1744739123261,46.21523589,128.97,128.93,0.063]
[1744739123705,12.46143589,128.96,128.93,0.063]
[1744739123854,33.7527,128.99,128.93,12.52443589]
[1744739124056,12.49143589,129.02,128.97,12.46143589]
[1744739124364,2.85666439,129.01,128.97,12.46143589]
[1744739124565,10.60816439,129.01,128.97,20.21503589]
[1744739125178,10.60816439,129.01,128.97,27.22336896]
[1744739125484,7.7515,129.01,128.97,27.22336896]
[1744739125664,7.7515,129.01,128.97,19.46976896]
[1744739125863,7.7515,129.01,128.97,27.22336896]
[1744739126667,2.85837856,129.0,128.97,27.22336896]
[1744739126868,2.85837856,129.0,128.97,19.46976896]
[1744739127194,19.46976896,128.99,128.96,10.86]
[1744739127486,27.22166896,129.0,128.96,10.86]
[1744739127984,27.22116896,129.01,128.96,18.614]
[1744739128153,7.7514,129.01,128.97,19.46976896]
[1744739128479,27.22116896,129.01,128.96,38.08376896]
[1744739128779,27.22116896,129.01,128.96,30.32976896]
[1744739129279,2.86135742,129.0,128.96,30.32976896]
[1744739129491,22.33112638,129.0,128.96,10.86]
[1744739129980,19.46976896,129.0,128.96,10.86]
[1744739130871,19.46976896,128.97,128.96,10.86]
[1744739131175,19.46976896,128.98,128.96,10.86]
[1744739131558,2.86470588,128.97,128.96,10.86]
[1744739132363,7.7525,128.99,128.96,30.32976896]
[1744739132685,27.22226896,128.99,128.96,10.86]
[1744739133076,22.33463009,128.98,128.96,10.86]
[1744739133495,2.86486113,128.97,128.96,10.86]
[1744739134388,48.33463009,128.97,128.93,0.063]
[1744739134680,19.46976896,128.94,128.93,0.063]
[1744739134860,27.22526896,128.94,128.93,0.063]
[1744739135261,26.0,128.97,128.93,0.063]
[1744739135477,26.0,128.97,128.93,19.53276896]
[1744739135691,45.46976896,128.97,128.93,0.063]
[1744739135866,2.86632657,128.96,128.93,0.063]
[1744739136676,27.22376896,128.97,128.93,0.063]
[1744739138288,2.86787593,128.96,128.93,0.063]
[1744739138464,10.62217593,128.96,128.93,0.063]
[1744739139094,7.7543,128.96,128.93,0.063]
[1744739139879,27.22406896,128.96,128.93,0.063]
[1744739141015,2.8709985,128.95,128.93,0.063]
[1744739141791,19.46976896,128.95,128.93,0.063]
[1744739141988,27.22406896,128.96,128.93,0.063]
[1744739143405,2.87148995,128.95,128.93,0.063]
[1744739144189,27.22406896,128.96,128.93,0.063]
[1744739144796,19.46976896,128.94,128.93,0.063]
[1744739145792,22.34092895,128.94,128.93,0.063]
[1744739145995,60.46034677,128.94,128.93,0.063]
[1744739146191,87.97114677,128.94,128.92,0.063]
[1744739146485,22.34092895,128.93,128.92,0.063]
[1744739146996,18.64964886,128.92,128.88,0.063]
[1744739147168,19.46976896,128.9,128.88,0.063]
[1744739148697,19.46976896,128.89,128.88,0.063]
[1744739148885,27.22826896,128.89,128.88,0.063]
[1744739149589,27.22796896,128.9,128.88,0.063]
[1744739149900,19.46976896,128.89,128.88,0.063]
[1744739150679,7.7582,128.9,128.88,0.063]
[1744739150877,27.22556896,128.94,128.89,27.22776896]
[1744739151077,7.7552,128.95,128.92,19.46976896]
[1744739151797,7.7552,128.95,128.92,10.86]
[1744739154298,19.46976896,128.95,128.92,10.86]
[1744739156201,27.22406896,128.96,128.92,10.86]
[1744739156582,19.46976896,128.95,128.92,10.86]
[1744739156990,27.22406896,128.96,128.92,10.86]
[1744739157207,2.86758561,128.95,128.92,30.32976896]
[1744739157906,27.22406896,128.96,128.92,30.32976896]
[1744739158795,27.22406896,128.96,128.92,10.86]
[1744739159695,2.8681946,128.95,128.92,10.86]
[1744739160384,27.22406896,128.96,128.92,10.86]
[1744739161223,33.754,128.97,128.92,38.08636896]
[1744739161397,53.22376896,128.97,128.92,39.69906896]
[1744739161893,19.46976896,128.96,128.92,31.94246896]
[1744739162215,2.87016255,128.96,128.92,39.69906896]
[1744739162712,10.62516255,128.95,128.92,31.94246896]
[1744739163415,2.87016255,128.94,128.92,31.94246896]
[1744739163588,2.87016255,128.94,128.92,12.4727]
[1744739164097,2.87016255,128.94,128.92,10.86]
[1744739165212,10.62586255,128.94,128.92,10.86]
[1744739165514,2.87016255,128.94,128.92,18.6167]
[1744739165722,2.87016255,128.94,128.92,30.32976896]
[1744739166022,10.62516255,128.95,128.92,30.32976896]
[1744739166899,7.755,128.95,128.92,30.32976896]
[1744739167101,7.755,128.95,128.92,10.86]
[1744739167300,27.22476896,128.95,128.92,10.86]
[1744739167506,2.87052969,128.94,128.92,10.86]
[1744739168018,22.34029865,128.94,128.92,10.86]
[1744739168316,19.46976896,128.94,128.92,10.86]
[1744739168703,19.46976896,128.93,128.92,10.86]
[1744739168902,22.33731313,128.93,128.92,10.86]
[1744739169319,23.10114564,128.93,128.92,10.86]
[1744739169918,2.86754417,128.93,128.92,10.86]
[1744739170119,2.86754417,128.93,128.92,29.97610147]
[1744739170289,19.3819,128.99,128.93,1.5892]
[1744739170616,46.22940147,129.0,128.95,12.47750147]
[1744739170815,21.0119,129.01,128.93,1.5892]
[1744739170816,7.7816,129.01,128.98,12.47750147]
[1744739170991,7.7816,129.01,128.97,23.33750147]
[1744739171194,7.7816,129.01,128.97,30.32979533]
[1744739172217,27.25139533,129.01,128.97,30.32979533]
[1744739172423,27.25139533,129.01,128.97,10.86]
[1744739172601,19.46979533,129.0,128.97,10.86]
[1744739173292,46.62969533,129.01,128.97,10.86]
[1744739174015,7.7816,129.01,128.97,30.32979533]
[1744739174189,7.7816,129.01,128.98,19.46979533]
[1744739174394,27.25139533,129.01,128.97,10.86]
[1744739174595,19.46979533,129.0,128.97,10.86]
[1744739175290,19.46979533,128.99,128.97,10.86]
[1744739175819,7.7531,128.98,128.97,10.86]
[1744739178016,7.7528,128.99,128.97,10.86]
[1744739180413,0.03,129.01,128.98,19.46979533]
[1744739181528,7.7816,129.01,128.98,19.46979533]
[1744739182229,27.25139533,129.01,128.97,10.86]
[1744739182805,19.46979533,129.0,128.97,10.86]
[1744739183029,0.03,129.01,128.97,38.08319533]
[1744739183617,0.03,129.01,128.99,19.46979533]
[1744739184716,0.03,129.01,129.0,19.46979533]
[1744739185616,0.03,129.01,128.99,21.04829533]
[1744739185814,0.03,129.01,129.0,19.46979533]
[1744739186304,0.03,129.01,128.99,21.04829533]
[1744739186823,0.03,129.01,129.0,19.46979533]
[1744739187730,0.03,129.01,129.0,27.22169533]
[1744739188326,0.03,129.01,129.0,19.46979533]
[1744739188531,0.03,129.01,128.99,21.04829533]
[1744739188915,0.03,129.01,129.0,19.46979533]
[1744739189814,0.03,129.01,129.0,27.22169533]
[1744739197212,0.03,129.01,129.0,70.00244555]
[1744739200739,0.03,129.01,129.0,20.20200911]
[1744739201244,0.03,129.01,129.0,12.45010911]
[1744739203142,0.03,129.01,129.0,20.20200911]
[1744739203330,1.714441,129.01,129.0,20.20200911]
[1744739206143,1.714441,129.01,129.0,31.04200911]
[1744739209442,0.03,129.02,129.0,99.49209441]
[1744739209644,0.03,129.06,129.01,46.35320911]
[1744739209826,0.03,129.06,129.05,12.45010911]
[1744739210146,0.03,129.06,129.05,10.84]
[1744739210932,0.03,129.06,129.05,31.03900911]
[1744739213350,0.03,129.06,129.05,101.11359441]
[1744739215146,0.03,129.06,129.05,77.73022108]
[1744739216837,0.03,129.06,129.05,160.73022108]
[1744739217929,0.03,129.06,129.05,121.02248611]
[1744739221654,0.03,129.06,129.05,159.10572108]
[1744739221958,0.03,129.08,129.06,99.05472108]
[1744739222952,0.03,129.11,129.08,18.64964886]
[1744739223252,0.03,129.11,129.1,19.43358611]
[1744739223459,0.03,129.11,129.1,30.27358611]
[1744739224256,0.03,129.11,129.1,38.01948611]
[1744739230367,0.03,129.11,129.1,56.66913497]
[1744739232464,0.03,129.11,129.1,82.66913497]
[1744739235044,0.03,129.11,129.1,64.01948611]
[1744739235240,0.03,129.11,129.1,57.01804117]
[1744739236861,0.03,129.11,129.1,10.84]
[1744739237052,12.46214117,129.11,129.09,10.84]
[1744739237257,12.43214117,129.1,129.09,10.84]
[1744739238248,31.08179003,129.1,129.02,20.18274117]
[1744739238445,12.43214117,129.04,129.03,10.84]
[1744739239251,19.46247915,129.04,129.03,10.84]
[1744739239747,19.46247915,129.05,129.03,10.84]
[1744739241181,27.21197915,129.04,129.03,10.84]
[1744739242250,19.46247915,129.04,129.03,10.84]
[1744739242450,8.0183,129.08,129.03,38.05237915]
[1744739242659,8.0183,129.08,129.04,19.46247915]
[1744739243169,25.72387915,129.11,129.06,19.46247915]
[1744739243366,7.7462,129.1,129.06,19.46247915]
[1744739243759,33.46947915,129.11,129.06,27.21057915]
[1744739244673,33.46947915,129.11,129.07,19.46247915]
[1744739244873,33.46947915,129.11,129.08,10.84]
[1744739245453,0.03,129.11,129.08,10.84]
[1744739245658,0.03,129.11,129.08,38.04937915]
[1744739245855,0.03,129.11,129.09,19.46247915]
[1744739246086,0.03,129.11,129.1,19.46247915]
[1744739246275,0.03,129.11,129.08,10.84]
[1744739246464,0.03,129.11,129.08,30.30247915]
[1744739248259,0.03,129.11,129.08,10.84]
[1744739250069,19.49247915,129.11,129.08,10.84]
[1744739250474,19.46247915,129.09,129.08,10.84]
[1744739251586,27.20897915,129.09,129.08,10.84]
[1744739253075,0.03,129.11,129.08,10.84]
[1744739253076,7.7755,129.11,129.08,10.84]
[1744739254788,27.23797915,129.11,129.08,10.84]
[1744739255089,19.46247915,129.1,129.08,10.84]
[1744739255289,19.46247915,129.09,129.08,10.84]
[1744739255488,19.46247915,129.09,129.02,26.0]
[1744739255489,7.7489,129.05,129.02,10.84]
[1744739255789,19.46247915,129.03,129.02,10.84]
[1744739256666,19.46247915,129.03,129.02,10.903]
[1744739257588,27.21257915,129.03,129.02,10.903]
[1744739259788,71.86222801,129.03,129.02,0.063]
[1744739260364,1.525,129.01,128.99,0.063]
[1744739260589,90.00600716,129.0,128.99,0.063]
[1744739260886,51.89387915,129.0,128.99,0.063]
[1744739261473,45.46247915,129.0,128.99,0.063]
[1744739261894,53.21437915,129.0,128.99,0.063]
[1744739262669,91.32650716,129.0,128.99,0.063]
[1744739262871,71.86402801,129.0,128.99,0.063]
[1744739263165,53.21437915,129.0,128.99,0.063]
[1744739266178,53.21367915,129.02,128.99,10.903]
[1744739266878,19.46247915,129.01,128.99,10.903]
[1744739267269,27.21397915,129.01,128.99,10.903]
[1744739267614,19.46247915,129.0,128.99,10.903]
[1744739268186,53.21327915,129.02,128.99,10.903]
[1744739268396,7.7508,129.02,128.99,10.903]
[1744739268609,27.21277915,129.03,128.99,30.36547915]
[1744739269187,27.21277915,129.03,128.99,10.903]
[1744739269399,9.3557,129.05,128.99,38.11777915]
[1744739269578,27.21017915,129.07,129.02,19.46247915]
[1744739269776,7.7477,129.07,129.03,19.46247915]
[1744739270088,7.7477,129.07,129.04,30.30247915]
[1744739271394,27.20977915,129.08,129.04,30.30247915]
[1744739271574,45.49247915,129.09,129.04,30.30247915]
[1744739271895,45.49247915,129.09,129.05,19.46247915]
[1744739272088,45.49247915,129.09,129.06,19.46247915]
[1744739272089,0.03,129.09,129.06,19.46247915]
[1744739275579,0.03,129.09,129.05,19.46247915]
[1744739277502,0.03,129.09,129.04,18.5892]
[1744739277503,19.46247915,129.08,129.04,10.84]
[1744739277804,19.46247915,129.08,129.04,30.30247915]
[1744739278496,19.46247915,129.07,129.04,10.84]
[1744739279206,19.46247915,129.08,129.04,10.84]
[1744739279383,7.7769,129.09,129.04,10.84]
[1744739279708,7.7769,129.09,129.04,30.30247915]
[1744739279709,19.46247915,129.08,129.04,30.30247915]
[1744739281905,27.20987915,129.08,129.04,30.30247915]
[1744739283208,19.46247915,129.07,129.04,10.84]
[1744739283583,27.20987915,129.08,129.04,10.84]
[1744739284688,0.03,129.09,129.06,19.46247915]
[1744739285296,0.03,129.09,129.07,10.84]
[1744739285509,7.7765,129.09,129.07,10.84]
[1744739286289,27.23897915,129.09,129.07,10.84]
[1744739287001,19.46247915,129.08,129.07,10.84]
[1744739288915,18.64964886,129.07,129.02,10.84]
[1744739289211,19.46247915,129.03,129.02,10.84]
[1744739290587,19.46247915,129.04,129.02,10.84]
[1744739290791,18.64964886,129.07,129.02,10.84]
[1744739290792,27.21127915,129.06,129.02,10.84]
[1744739291010,7.7488,129.06,129.02,30.30247915]
[1744739291207,27.21127915,129.06,129.02,10.84]
[1744739292015,19.46247915,129.05,129.02,10.84]
[1744739292508,27.21127915,129.06,129.02,10.84]
[1744739293818,19.46247915,129.05,129.02,10.84]
[1744739295010,27.21147915,129.05,129.02,10.84]
[1744739296814,19.46247915,129.03,129.02,10.84]
[1744739298310,27.21257915,129.03,129.02,10.84]
[1744739298515,7.7501,129.03,129.02,10.84]
[1744739298719,27.21257915,129.03,129.02,10.84]
[1744739299494,27.21257915,129.03,128.99,0.063]
[1744739299721,19.46247915,129.02,128.99,0.063]
[1744739300302,27.21347915,129.02,128.99,0.063]
[1744739301586,19.46247915,129.03,128.99,0.063]
[1744739301790,19.46247915,129.04,129.0,19.46247915]
[1744739302005,53.21167915,129.05,129.0,19.46247915]
[1744739303218,53.21167915,129.05,129.0,27.21427915]
[1744739303621,53.21167915,129.05,129.0,19.46247915]
[1744739304013,53.21167915,129.05,129.0,27.21437915]
[1744739304314,19.46247915,129.04,129.0,19.46247915]
[1744739304492,19.46247915,129.02,128.99,0.063]
[1744739304694,19.46247915,129.0,128.99,0.063]
[1744739304911,38.9249583,129.0,128.99,0.063]
[1744739305115,19.46247915,129.0,128.99,0.063]
[1744739305717,27.21437915,129.0,128.99,0.063]
[1744739306020,65.32650716,129.0,128.99,0.063]
[1744739306219,46.6768583,129.0,128.99,0.063]
[1744739306522,27.21437915,129.0,128.99,0.063]
[1744739307617,7.7504,129.03,128.99,30.34547915]
[1744739308300,27.21287915,129.03,128.99,10.883]
[1744739308500,19.46247915,129.02,128.99,10.883]
[1744739309723,19.46247915,129.01,128.99,10.883]
[1744739311924,7.7519,129.0,128.99,10.883]
[1744739312428,27.21437915,129.0,128.99,10.883]
[1744739312610,27.21437915,129.0,128.99,0.063]
[1744739320621,19.46247915,129.02,128.99,0.063]
[1744739321005,19.46247915,129.01,128.99,0.063]
[1744739321913,19.46247915,129.0,128.99,0.063]
[1744739322314,57.57460716,129.0,128.99,0.0001]
[1744739322513,65.32650716,129.0,128.99,0.0001]
[1744739325114,45.86402801,129.0,128.99,0.0001]
[1744739326944,65.32650716,129.0,128.99,0.0001]
[1744739329121,45.86402801,129.0,128.99,0.0001]
[1744739329319,9.45838377,129.02,128.99,0.0001]
[1744739329520,7.7492,129.05,129.0,19.46247915]
[1744739329733,27.21167915,129.05,129.0,30.30247915]
[1744739329943,53.21167915,129.05,129.0,30.30247915]
[1744739330236,45.46247915,129.05,129.0,30.30247915]
[1744739330444,19.46247915,129.05,129.01,19.46247915]
[1744739330942,45.46247915,129.05,129.01,19.46247915]
[1744739331157,19.46247915,129.04,129.0,30.30247915]
[1744739331648,19.46247915,129.04,129.0,38.05427915]
[1744739332644,53.21177915,129.05,129.0,38.05427915]
[1744739332828,26.0,129.05,129.01,19.46247915]
[1744739333034,0.03,129.06,129.02,19.46247915]
[1744739333232,19.49247915,129.06,129.01,19.46247915]
[1744739333932,19.49247915,129.06,129.02,19.46247915]
[1744739334549,19.49247915,129.06,129.01,19.46247915]
[1744739334736,19.49247915,129.06,129.02,7.7507]
[1744739335654,0.03,129.06,129.04,19.46247915]
[1744739335831,0.03,129.06,129.05,30.28247915]
[1744739337251,0.03,129.06,129.05,38.03137915]
[1744739341036,0.03,129.06,129.05,10.82]
[1744739341956,0.03,129.06,129.05,18.5689]
[1744739342352,0.03,129.06,129.05,38.03137915]
[1744739344450,19.49247915,129.06,129.05,10.82]
[1744739345551,0.03,129.06,129.05,10.82]
[1744739345861,0.03,129.06,129.05,44.51747915]
[1744739346750,0.03,129.06,129.05,10.82]
[1744739347531,19.49247915,129.06,129.05,10.82]
[1744739348454,27.24077915,129.06,129.05,10.82]
[1744739349253,0.03,129.06,129.05,10.82]
[1744739350552,0.03,129.06,129.05,58.33842801]
[1744739350758,0.03,129.08,129.06,6.5435]
[1744739351061,0.03,129.08,129.07,19.46247915]
[1744739352561,0.03,129.08,129.07,27.21017915]
[1744739354346,0.03,129.08,129.05,12.4774]
[1744739354547,0.03,129.08,129.05,31.93987915]
[1744739355158,0.03,129.08,129.05,39.68867915]
[1744739355543,0.03,129.08,129.07,19.46247915]
[1744739356759,0.03,129.08,129.06,19.46247915]
[1744739356950,0.03,129.08,129.05,39.68867915]
[1744739357263,0.03,129.08,129.06,19.46247915]
[1744739357765,0.03,129.08,129.07,7.7477]
[1744739358260,0.03,129.08,129.06,27.21047915]
[1744739358469,19.46247915,129.07,129.05,10.82]
[1744739359542,19.46247915,129.06,129.05,10.82]
[1744739359743,0.03,129.08,129.05,10.82]
[1744739359744,19.46247915,129.07,129.05,10.82]
[1744739359939,27.23997915,129.08,129.05,10.82]
[1744739360143,0.03,129.08,129.05,38.03107915]
[1744739361208,0.03,129.08,129.05,18.5686]
[1744739362160,0.03,129.08,129.05,38.03107915]
[1744739363179,0.03,129.08,129.05,10.82]
[1744739363483,19.49247915,129.08,129.05,10.82]
[1744739364450,27.23987915,129.08,129.05,10.82]
[1744739364855,0.03,129.08,129.05,18.5688]
[1744739365382,0.03,129.08,129.05,10.82]
[1744739365581,7.7773,129.08,129.05,10.82]
[1744739365874,27.23977915,129.08,129.05,10.82]
[1744739367290,0.03,129.08,129.05,10.82]
[1744739367583,0.03,129.08,129.05,18.5688]
[1744739367759,0.03,129.08,129.05,10.82]
[1744739368576,19.46247915,129.06,129.05,10.82]
[1744739369957,27.21077915,129.06,129.05,10.82]
[1744739370783,33.42657915,129.06,129.01,10.82]
[1744739370958,19.46247915,129.04,129.01,10.82]
[1744739371284,19.46247915,129.03,129.01,10.82]
[1744739372071,27.21277915,129.03,129.01,10.82]
[1744739372885,19.46247915,129.03,129.01,10.82]
[1744739373183,27.21267915,129.03,129.01,10.82]
[1744739373391,19.46247915,129.02,129.01,10.82]
[1744739373704,39.75512801,129.02,128.99,0.0001]
[1744739373864,19.46247915,129.0,128.99,0.0001]
[1744739374359,27.21437915,129.0,128.99,0.0001]
[1744739375474,44.64964886,128.98,128.97,0.063]
[1744739375681,64.11212801,128.98,128.97,0.063]
[1744739376280,71.86522801,128.98,128.97,0.063]
[1744739377593,39.72512801,128.97,128.96,0.063]
[1744739377754,39.72512801,128.97,128.96,0.0001]
[1744739378486,47.47882801,128.97,128.96,0.0001]
[1744739378669,64.9249583,128.95,128.94,0.063]
[1744739378980,45.46247915,128.95,128.94,0.063]
[1744739381085,53.21737915,128.95,128.94,0.063]
[1744739383866,27.21737915,128.95,128.94,0.063]
[1744739385091,1.6427,129.01,128.94,30.34547915]
[1744739385289,1.6427,129.01,128.97,19.46247915]
[1744739385290,27.21397915,129.01,128.97,19.46247915]
[1744739385664,19.46247915,129.0,128.95,19.46247915]
[1744739386093,19.46247915,129.01,128.97,19.46247915]
[1744739386264,19.46247915,129.0,128.96,19.46247915]
[1744739387089,27.21437915,129.01,128.96,27.21657915]
[1744739387284,19.46247915,128.99,128.95,19.46247915]
[1744739387486,19.46247915,128.97,128.94,10.883]
[1744739387791,19.46247915,128.96,128.94,10.883]
[1744739388374,45.46247915,128.97,128.94,10.883]
[1744739388584,19.46247915,128.96,128.94,10.883]
[1744739388987,27.21707915,128.96,128.94,10.883]
[1744739389390,53.21637915,128.97,128.94,10.883]
[1744739390086,33.7539,128.97,128.94,10.883]
[1744739390284,7.7533,128.98,128.94,30.34547915]
[1744739390790,45.46247915,129.0,128.95,19.46247915]
[1744739391096,38.02534886,129.03,128.97,19.46247915]
[1744739391097,19.46247915,129.01,128.97,19.46247915]
[1744739391476,19.46247915,129.02,128.97,19.46247915]
[1744739391869,19.46247915,128.99,128.94,10.883]
[1744739392070,19.46247915,128.99,128.94,18.6384]
[1744739392279,19.46247915,128.99,128.94,30.34547915]
[1744739392997,27.21527915,128.99,128.95,19.46247915]
[1744739393590,27.21527915,128.99,128.94,30.34547915]
[1744739394097,19.46247915,128.98,128.94,10.883]
[1744739394987,19.46247915,128.98,128.94,30.34547915]
[1744739394988,7.7535,128.98,128.94,30.34547915]
[1744739397410,45.46247915,129.0,128.95,19.46247915]
[1744739398399,53.21457915,129.0,128.95,19.46247915]
[1744739399205,53.21457915,129.0,128.94,18.6385]
[1744739399206,19.46247915,128.99,128.94,38.10097915]
[1744739400179,7.7531,128.98,128.94,38.10097915]
[1744739402413,7.7531,128.98,128.94,30.34547915]